bitfinex/quotes_ETHUSD_20250628
["timestamp","ask_amount","ask_price","bid_price","bid_amount"]
[1751140848064,16.602,2433.3,2433.2,2.46588854]
[1751140849975,10.0,2433.3,2433.2,3.82658854]
[1751140850950,10.0,2433.5,2433.4,2.46568356]
[1751140851121,6.606,2433.5,2433.4,3.27638356]
[1751140851924,0.2048,2433.6,2433.4,3.27638356]
[1751140852121,10.0,2433.5,2433.4,3.27638356]
[1751140853027,16.605,2433.6,2433.5,2.46556371]
[1751140853557,6.605,2433.9,2433.7,2.46533074]
[1751140853755,0.2048,2434.0,2433.8,2.46528063]
[1751140853964,6.8108,2434.0,2433.8,2.46528063]
[1751140854265,10.0,2433.9,2433.7,2.46533901]
[1751140854634,0.2048,2434.0,2433.7,2.46533901]
[1751140854960,6.606,2433.9,2433.7,2.46533901]
[1751140857571,6.606,2433.9,2433.6,3.82613856]
[1751140857870,6.606,2433.9,2433.6,3.82611058]
[1751140858662,6.606,2433.9,2433.7,2.46537648]
[1751140860527,6.606,2433.9,2433.6,3.82614989]
[1751140860732,9.45879647,2433.8,2433.3,0.8051]
[1751140861030,9.45879647,2433.8,2433.5,2.46556389]
[1751140861236,10.0,2433.8,2433.5,2.46552174]
[1751140861729,0.2048,2433.9,2433.7,0.55]
[1751140861968,10.0,2433.9,2433.8,2.46528063]
[1751140863048,0.2048,2434.0,2433.9,2.46517934]
[1751140863241,16.8098,2434.0,2433.9,2.46517934]
[1751140864273,10.0,2433.9,2433.8,3.0152259]
[1751140864571,0.2048,2434.0,2433.8,3.0152259]
[1751140864866,6.8098,2434.0,2433.8,3.0152259]
[1751140868291,6.8098,2434.0,2433.7,3.01533357]
[1751140869575,6.8098,2434.0,2433.8,2.46527273]
[1751140869780,0.002,2434.2,2433.9,2.46517934]
[1751140869983,16.603,2434.1,2434.0,2.46506418]
[1751140871472,10.0,2434.1,2434.0,2.46506418]
[1751140871673,10.0,2434.1,2434.0,3.01506418]
[1751140884096,0.002,2434.2,2434.1,2.46497678]
[1751140884304,0.002,2434.2,2434.0,3.01501939]
[1751140885912,0.002,2434.2,2434.1,2.46497678]
[1751140886080,0.002,2434.2,2434.0,3.01501879]
[1751140888214,0.002,2434.2,2434.0,0.55]
[1751140888703,0.8234,2434.2,2433.9,0.2048]
[1751140890207,3.28827777,2434.2,2433.9,0.2048]
[1751140890772,0.8234,2434.2,2433.9,0.2048]
[1751140893341,0.002,2434.2,2434.0,3.015027]
[1751140893516,0.002,2434.2,2434.0,3.790527]
[1751140893876,0.002,2434.2,2434.1,3.01497678]
[1751140894097,0.002,2434.2,2434.1,3.86582114]
[1751140895904,0.002,2434.2,2434.1,4.66922114]
[1751140922825,0.002,2434.2,2434.1,12.94822114]
[1751140923456,0.002,2434.2,2434.1,6.34822114]
[1751140923663,0.002,2434.2,2434.1,12.94822114]
[1751140931160,0.002,2434.2,2434.1,3.86582114]
[1751140931377,0.002,2434.2,2434.1,11.49777678]
[1751140936665,0.002,2434.2,2434.1,12.26257678]
[1751140944384,0.002,2434.2,2434.1,16.58757678]
[1751140944703,0.002,2434.2,2434.1,12.26257678]
[1751140945049,0.002,2434.2,2434.1,11.49877678]
[1751140945243,0.002,2434.2,2434.1,12.97721012]
[1751140945678,0.002,2434.2,2434.1,4.14821012]
[1751140945888,0.002,2434.2,2434.1,10.94877678]
[1751140946045,0.002,2434.2,2434.1,11.49877678]
[1751140953981,0.002,2434.2,2434.1,12.27517678]
[1751140960460,0.002,2434.2,2434.1,11.49877678]
[1751140963794,0.002,2434.2,2434.1,21.49877678]
[1751140964096,0.002,2434.2,2434.1,24.84103977]
[1751140985249,0.002,2434.2,2434.1,29.16603977]
[1751140992033,0.002,2434.2,2434.1,16.56203977]
[1751140992200,0.002,2434.2,2434.1,16.01203977]
[1751140992394,0.002,2434.2,2434.1,24.28503977]
[1751140992705,0.002,2434.2,2434.1,24.83503977]
[1751140993535,0.002,2434.2,2434.1,24.28603977]
[1751140993826,0.002,2434.2,2434.1,24.83603977]
[1751140994122,0.002,2434.2,2434.1,24.83703977]
[1751140996822,0.002,2434.2,2434.1,8.23903977]
[1751140997024,0.002,2434.2,2434.1,10.94477678]
[1751140997395,0.002,2434.2,2434.1,10.94677678]
[1751140997596,0.002,2434.2,2434.1,11.49677678]
[1751140998033,0.773,2434.2,2434.1,11.49677678]
[1751140999933,0.773,2434.2,2434.1,9.81977678]
[1751141000823,0.773,2434.2,2434.1,3.21977678]
[1751141001006,0.773,2434.2,2434.1,9.81877678]
[1751141001526,0.773,2434.2,2434.1,3.21977678]
[1751141001717,0.773,2434.2,2434.1,9.81877678]
[1751141001913,0.773,2434.2,2434.1,3.21977678]
[1751141002119,0.773,2434.2,2434.1,9.81977678]
[1751141002324,0.773,2434.2,2434.1,3.21977678]
[1751141002512,0.773,2434.2,2434.1,9.81877678]
[1751141003527,0.773,2434.2,2434.1,4.61586012]
[1751141003832,0.002,2434.2,2434.1,11.21486012]
[1751141009534,0.002,2434.2,2434.1,21.21486012]
[1751141036009,0.002,2434.2,2434.1,22.03366012]
[1751141037085,0.002,2434.2,2434.1,26.35866012]
[1751141038696,0.002,2434.2,2434.1,31.00866012]
[1751141040461,0.002,2434.2,2434.1,20.08466012]
[1751141040695,0.002,2434.2,2434.1,28.36166012]
[1751141041766,0.002,2434.2,2434.1,28.36066012]
[1751141044804,0.002,2434.2,2434.1,23.71066012]
[1751141045207,0.002,2434.2,2434.1,15.43466012]
[1751141045403,0.002,2434.2,2434.1,22.88986012]
[1751141050911,0.002,2434.2,2434.1,14.61586012]
[1751141051105,0.002,2434.2,2434.1,22.88886012]
[1751141051413,0.002,2434.2,2434.1,14.61586012]
[1751141051617,0.002,2434.2,2434.1,22.88886012]
[1751141052801,0.002,2434.2,2434.1,23.65856012]
[1751141065839,0.002,2434.8,2434.7,3.01436932]
[1751141066054,0.002,2434.8,2434.7,12.53850902]
[1751141066401,0.002,2434.8,2434.7,12.74330902]
[1751141074554,0.002,2434.8,2434.7,2.66916932]
[1751141074758,0.7874,2434.8,2434.7,10.94716932]
[1751141074960,0.7874,2434.8,2434.7,11.49716932]
[1751141080834,0.002,2434.8,2434.7,11.49716932]
[1751141081035,0.002,2434.8,2434.7,20.93806419]
[1751141081341,0.002,2434.8,2434.7,33.36043547]
[1751141094677,0.002,2434.8,2434.7,33.35882509]
[1751141100482,0.002,2434.8,2434.7,25.08082509]
[1751141100654,0.002,2434.8,2434.7,30.52693047]
[1751141102584,0.002,2434.8,2434.7,33.35822947]
[1751141106687,0.002,2434.8,2434.7,23.9145406]
[1751141106893,0.002,2434.8,2434.7,20.94216932]
[1751141107053,0.002,2434.8,2434.7,21.49216932]
[1751141125030,0.002,2434.8,2434.7,11.49216932]
[1751141126829,0.002,2434.8,2434.7,18.10109994]
[1751141130720,0.002,2434.8,2434.7,3.21916932]
[1751141130920,0.002,2434.8,2434.7,9.81216932]
[1751141131293,0.002,2434.8,2434.7,3.21916932]
[1751141131623,0.002,2434.8,2434.7,9.81216932]
[1751141136629,0.002,2434.8,2434.7,3.21916932]
[1751141137094,0.002,2434.8,2434.7,9.81216932]
[1751141137933,0.002,2434.8,2434.7,3.21916932]
[1751141138228,0.002,2434.8,2434.7,16.42109994]
[1751141138929,0.002,2434.8,2434.7,9.82809994]
[1751141139130,0.002,2434.8,2434.7,16.42109994]
[1751141139925,0.002,2434.8,2434.7,9.82809994]
[1751141140225,0.002,2434.8,2434.7,16.42109994]
[1751141140926,0.002,2434.8,2434.7,9.82809994]
[1751141141135,0.002,2434.8,2434.7,16.42109994]
[1751141141930,0.002,2434.8,2434.7,9.82809994]
[1751141142222,0.002,2434.8,2434.7,16.42109994]
[1751141142932,0.002,2434.8,2434.7,9.82809994]
[1751141143131,0.002,2434.8,2434.7,16.42109994]
[1751141143659,0.002,2434.8,2434.7,9.82809994]
[1751141143830,0.002,2434.8,2434.7,16.42109994]
[1751141146933,0.002,2434.8,2434.7,9.82809994]
[1751141147137,0.002,2434.8,2434.7,16.42109994]
[1751141147302,0.002,2434.8,2434.7,9.82809994]
[1751141147503,0.002,2434.8,2434.7,16.42109994]
[1751141155945,0.002,2434.8,2434.7,9.81216932]
[1751141160447,0.002,2434.8,2434.7,3.21916932]
[1751141160448,0.8335,2434.8,2434.7,3.21916932]
[1751141162252,0.002,2434.8,2434.7,3.21916932]
[1751141171943,0.002,2434.8,2434.7,3.97336932]
[1751141172140,0.002,2434.8,2434.7,5.93733994]
[1751141173257,0.002,2434.8,2434.7,12.54627056]
[1751141180748,0.002,2434.8,2434.7,5.93733994]
[1751141181085,0.002,2434.8,2434.7,3.21916932]
[1751141181236,0.002,2434.8,2434.7,4.89416932]
[1751141183367,0.002,2434.8,2434.7,11.48716932]
[1751141184772,0.002,2434.8,2434.7,3.21916932]
[1751141185137,0.002,2434.8,2434.7,9.81216932]
[1751141212417,0.002,2434.8,2434.7,3.21916932]
[1751141212722,0.002,2434.8,2434.7,9.81116932]
[1751141215332,0.002,2434.8,2434.7,2.66916932]
[1751141215502,1.46889306,2434.8,2434.6,9.26121865]
[1751141216832,1.46889306,2434.8,2434.7,2.46436932]
[1751141219406,0.8074,2434.8,2434.7,2.46436932]
[1751141224232,0.8074,2434.8,2434.6,9.26122863]
[1751141224435,0.8074,2434.8,2434.0,0.7891]
[1751141224436,6.60893062,2434.7,2434.0,0.7891]
[1751141224734,0.8125,2434.6,2434.5,2.46457178]
[1751141224939,1.57532306,2434.6,2434.5,2.46457178]
[1751141225436,6.81373062,2434.7,2434.6,2.46447054]
[1751141225437,0.2048,2434.7,2434.6,2.46447054]
[1751141225610,0.002,2434.8,2434.7,2.46436932]
[1751141229908,0.002,2434.8,2434.7,3.01436932]
[1751141230120,0.002,2434.8,2434.7,10.59136932]
[1751141230453,0.002,2434.8,2434.7,12.55784612]
[1751141247588,0.002,2434.8,2434.7,5.96484612]
[1751141247762,0.002,2434.8,2434.7,11.48816932]
[1751141252167,0.002,2434.8,2434.7,11.48916932]
[1751141252370,0.002,2434.8,2434.7,2.66916932]
[1751141252534,0.8175,2434.8,2434.7,9.26616932]
[1751141252936,0.8175,2434.8,2434.7,0.2048]
[1751141253147,1.56054306,2434.8,2434.7,6.8018]
[1751141253370,1.56054306,2434.8,2434.6,2.46443402]
[1751141253570,1.56054306,2434.8,2434.7,6.601]
[1751141253848,1.56054306,2434.8,2434.6,9.27023402]
[1751141253977,1.56054306,2434.8,2434.6,6.8058]
[1751141254182,0.81714737,2434.7,2434.6,6.8058]
[1751141254768,0.8175,2434.8,2434.6,6.8058]
[1751141255295,0.8175,2434.8,2434.6,9.27025347]
[1751141257198,0.8175,2434.8,2434.6,0.2048]
[1751141257701,0.8175,2434.8,2434.5,6.8048]
[1751141258798,0.8175,2434.8,2434.5,9.26936439]
[1751141259003,1.2730386,2434.7,2434.5,9.26936439]
[1751141259500,1.2730386,2434.7,2434.6,2.46447054]
[1751141259803,1.2730386,2434.7,2434.5,9.26932229]
[1751141261195,1.2730386,2434.7,2434.5,2.66932229]
[1751141264922,1.2730386,2434.7,2434.6,2.46447054]
[1751141265121,1.2730386,2434.7,2434.5,2.66931267]
[1751141265330,0.8175,2434.8,2434.5,2.66931267]
[1751141269934,0.8175,2434.8,2434.6,2.46446372]
[1751141274135,0.8175,2434.8,2434.7,2.46436932]
[1751141277610,0.002,2434.8,2434.7,2.46436932]
[1751141280521,0.002,2434.8,2434.7,2.66916932]
[1751141305183,0.002,2434.8,2434.7,0.2048]
[1751141305474,0.002,2434.8,2434.7,2.66916932]
[1751141343710,0.002,2434.8,2434.7,3.21916932]
[1751141343939,0.002,2434.8,2434.7,3.86319111]
[1751141345944,0.002,2434.8,2434.7,10.45619111]
[1751141350328,0.002,2434.8,2434.7,11.27779111]
[1751141360769,0.002,2434.8,2434.7,4.68479111]
[1751141360938,0.002,2434.8,2434.7,12.95179111]
[1751141367587,0.002,2434.8,2434.7,12.13019111]
[1751141370513,0.002,2434.8,2434.7,12.12919111]
[1751141374925,0.002,2434.8,2434.7,3.86319111]
[1751141375127,0.002,2434.8,2434.7,12.12919111]
[1751141375623,0.002,2434.8,2434.7,3.86319111]
[1751141375806,0.002,2434.8,2434.7,12.12919111]
[1751141376000,0.002,2434.8,2434.7,5.53819111]
[1751141376206,0.002,2434.8,2434.7,12.12919111]
[1751141376630,0.002,2434.8,2434.7,3.86319111]
[1751141376830,0.002,2434.8,2434.7,12.12919111]
[1751141377124,0.002,2434.8,2434.7,3.86319111]
[1751141377329,0.002,2434.8,2434.7,12.12919111]
[1751141383635,0.002,2434.8,2434.7,3.86319111]
[1751141383837,0.002,2434.8,2434.7,2.46436932]
[1751141384136,0.002,2434.8,2434.7,9.05536932]
[1751141385034,0.002,2434.8,2434.7,2.46436932]
[1751141385243,0.002,2434.8,2434.7,9.05536932]
[1751141387551,0.002,2434.8,2434.7,9.60536932]
[1751141392555,0.002,2434.8,2434.7,10.89273111]
[1751141393861,0.002,2434.8,2434.7,11.09753111]
[1751141395839,0.002,2434.8,2434.7,3.21916932]
[1751141396040,0.002,2434.8,2434.7,9.81116932]
[1751141401388,0.002,2434.8,2434.7,3.21916932]
[1751141401588,0.002,2434.8,2434.7,9.81116932]
[1751141401887,0.002,2434.8,2434.7,3.21916932]
[1751141402053,0.002,2434.8,2434.7,9.81116932]
[1751141429525,0.002,2434.8,2434.7,3.21916932]
[1751141429825,0.002,2434.8,2434.7,9.81116932]
[1751141451353,0.002,2434.8,2434.7,3.21916932]
[1751141451566,0.002,2434.8,2434.7,9.81016932]
[1751141460763,0.002,2434.8,2434.7,12.05531111]
[1751141460965,0.002,2434.8,2434.7,18.66736964]
[1751141461676,0.002,2434.8,2434.7,28.66736964]
[1751141474883,0.002,2434.8,2434.7,13.72831111]
[1751141477895,0.002,2434.8,2434.7,7.13831111]
[1751141478102,0.002,2434.8,2434.7,13.72731111]
[1751141499324,0.002,2434.8,2434.7,11.48216932]
[1751141499621,0.002,2434.8,2434.7,2.66916932]
[1751141499822,0.002,2434.8,2434.7,9.25816932]
[1751141499999,0.002,2434.8,2434.7,9.80816932]
[1751141500535,0.002,2434.8,2434.7,3.21916932]
[1751141500704,0.002,2434.8,2434.7,9.80816932]
[1751141501834,0.002,2434.8,2434.7,3.21916932]
[1751141501997,0.002,2434.8,2434.7,9.80816932]
[1751141507649,0.002,2434.8,2434.7,3.21916932]
[1751141507827,0.8175,2434.8,2434.7,0.7548]
[1751141508005,0.8175,2434.8,2434.7,7.3438]
[1751141508924,0.8175,2434.8,2434.7,6.7948]
[1751141509128,0.8175,2434.8,2434.7,6.589]
[1751141509314,1.14606151,2434.8,2434.7,6.589]
[1751141510442,1.14606151,2434.8,2434.6,0.2048]
[1751141510621,1.14606151,2434.8,2434.7,6.589]
[1751141511740,1.14606151,2434.8,2434.6,6.589]
[1751141512039,1.14606151,2434.8,2434.5,0.2048]
[1751141512040,1.14606151,2434.8,2434.5,2.66936571]
[1751141512254,0.38170367,2434.7,2434.6,6.59]
[1751141513142,0.38170367,2434.7,2434.5,2.66936571]
[1751141513329,0.38170367,2434.7,2434.6,6.59]
[1751141513914,0.38170367,2434.7,2434.5,9.25936571]
[1751141516045,0.38170367,2434.7,2434.5,2.66936571]
[1751141516350,0.8175,2434.8,2434.5,9.25936571]
[1751141517043,0.8175,2434.8,2434.5,2.66936571]
[1751141517245,0.8175,2434.8,2434.5,9.25936571]
[1751141519451,0.8175,2434.8,2434.6,2.46443871]
[1751141526761,0.8175,2434.8,2434.6,2.46444653]
[1751141527761,0.8175,2434.8,2434.5,9.25931374]
[1751141528132,7.42955853,2434.8,2434.5,6.7948]
[1751141528328,1.01005837,2434.7,2434.5,6.7948]
[1751141529189,1.01005837,2434.7,2434.5,9.25936734]
[1751141531471,1.01005837,2434.7,2434.5,2.66936734]
[1751141531648,1.01005837,2434.7,2434.5,2.46456606]
[1751141534175,1.01005837,2434.7,2434.6,2.46447054]
[1751141534469,1.0223,2434.8,2434.6,2.46447054]
[1751141534670,0.2068,2434.8,2434.6,2.46447054]
[1751141535871,0.2068,2434.8,2434.7,2.46436932]
[1751141537274,0.2068,2434.8,2434.6,2.46442088]
[1751141538306,0.2068,2434.8,2434.7,2.46436932]
[1751141538472,0.002,2434.8,2434.7,2.46436932]
[1751141541491,0.002,2434.8,2434.7,2.66916932]
[1751141541792,0.002,2434.8,2434.7,3.21916932]
[1751141542873,0.002,2434.8,2434.7,3.86523834]
[1751141550314,7.41695853,2434.8,2434.7,0.2048]
[1751141550521,7.41695853,2434.8,2434.1,4.13797479]
[1751141550522,7.41695853,2434.8,2434.5,0.2048]
[1751141550887,7.41695853,2434.8,2434.4,2.46462968]
[1751141551086,7.62175853,2434.8,2434.4,2.46462968]
[1751141552614,1.0097,2434.8,2434.4,2.46462968]
[1751141552817,1.29238992,2434.7,2434.4,2.46462968]
[1751141553219,1.29238992,2434.7,2434.3,0.2048]
[1751141553220,1.29238992,2434.7,2434.3,2.66952882]
[1751141553535,11.29238992,2434.7,2434.3,2.66952882]
[1751141553834,1.29238992,2434.7,2434.4,2.46466704]
[1751141553993,0.94093026,2434.6,2434.5,2.46457178]
[1751141554191,0.94093026,2434.6,2434.4,2.46461882]
[1751141554934,0.94093026,2434.6,2434.3,2.66953035]
[1751141555281,0.94093026,2434.6,2434.4,2.46465566]
[1751141557209,0.94093026,2434.6,2434.5,2.46457178]
[1751141558023,0.94093026,2434.6,2434.4,2.46461566]
[1751141558826,0.94093026,2434.6,2434.5,2.46457178]
[1751141559393,0.94093026,2434.6,2434.4,2.46462938]
[1751141561540,1.75643026,2434.6,2434.4,2.46462938]
[1751141563614,1.75643026,2434.6,2434.3,0.2048]
[1751141563815,0.42208502,2434.5,2434.3,2.66957247]
[1751141564035,1.75643026,2434.6,2434.3,2.66957247]
[1751141564335,1.75643026,2434.6,2434.4,2.46465236]
[1751141565024,1.75643026,2434.6,2434.3,2.66952898]
[1751141567239,1.75643026,2434.6,2434.4,2.46467192]
[1751141575246,1.75643026,2434.6,2434.3,2.66952268]
[1751141575762,1.75643026,2434.6,2434.4,2.46466498]
[1751141576057,1.75643026,2434.6,2434.3,2.66950001]
[1751141577853,1.75643026,2434.6,2434.4,2.46466212]
[1751141579460,1.75643026,2434.6,2434.3,2.66952543]
[1751141582665,1.75643026,2434.6,2434.4,2.46466772]
[1751141583159,0.94093026,2434.6,2434.5,2.46457178]
[1751141583459,0.8208,2434.7,2434.4,2.46462043]
[1751141586790,0.2068,2434.8,2434.4,0.55]
[1751141586965,0.2068,2434.8,2434.6,2.46440546]
[1751141587267,0.002,2434.8,2434.6,3.26090546]
[1751141587564,0.002,2434.8,2434.7,2.46436932]
[1751141589246,0.002,2434.8,2434.6,3.260916]
[1751141590071,0.002,2434.8,2434.6,0.7965]
[1751141590370,0.002,2434.8,2434.6,3.26096354]
[1751141598687,0.002,2434.8,2434.7,2.46436932]
[1751141598868,0.002,2434.8,2434.6,3.2609104]
[1751141605295,0.002,2434.8,2434.7,2.46436932]
[1751141609404,0.002,2434.8,2434.6,3.26094865]
[1751141609405,9.07824958,2434.8,2434.3,2.46471506]
[1751141609716,6.61198041,2434.6,2434.3,2.46469818]
[1751141610701,6.61198041,2434.6,2434.4,2.46467124]
[1751141611615,0.002,2434.8,2434.4,2.46467124]
[1751141611809,6.61198041,2434.7,2434.4,2.46467124]
[1751141612596,0.57533207,2434.8,2434.4,2.46467124]
[1751141612801,0.57533207,2434.8,2434.5,2.46456516]
[1751141614111,0.57533207,2434.8,2434.4,2.46461447]
[1751141617413,0.57533207,2434.8,2434.5,2.46456642]
[1751141617620,1.082398,2434.7,2434.5,2.46456642]
[1751141619318,1.287198,2434.7,2434.5,2.46456642]
[1751141619522,1.287198,2434.7,2434.4,2.46462347]
[1751141621345,0.2048,2434.7,2434.4,2.46462347]
[1751141631631,0.2048,2434.7,2434.3,2.66957115]
[1751141631801,0.2048,2434.7,2434.5,2.46456936]
[1751141633738,0.2048,2434.7,2434.4,2.46462494]
[1751141634730,9.28272912,2434.7,2434.3,2.66954015]
[1751141634903,9.28272912,2434.7,2434.3,0.2048]
[1751141634904,6.61354508,2434.5,2434.3,0.2048]
[1751141635101,6.61354508,2434.5,2434.3,2.66956618]
[1751141636006,6.61354508,2434.5,2434.3,0.2048]
[1751141636437,6.61354508,2434.5,2434.3,2.66951872]
[1751141638440,6.61354508,2434.5,2434.3,0.2048]
[1751141638606,6.61354508,2434.5,2434.3,2.6695669]
[1751141639622,6.61354508,2434.5,2434.1,0.7708]
[1751141639623,7.25114135,2434.5,2434.1,0.7708]
[1751141639823,7.25114135,2434.5,2434.2,2.46482561]
[1751141639824,7.45594135,2434.5,2434.2,2.46482561]
[1751141641551,9.92051458,2434.5,2434.1,3.44049461]
[1751141641747,7.45594135,2434.5,2434.1,2.66969461]
[1751141641950,7.45594135,2434.5,2434.1,2.66974407]
[1751141642464,7.45594135,2434.5,2434.2,2.46485983]
[1751141645694,7.45594135,2434.5,2434.1,2.66972437]
[1751141646587,6.81834508,2434.5,2434.2,2.46487205]
[1751141653223,0.2048,2434.5,2434.2,2.46487205]
[1751141653406,6.81834508,2434.5,2434.2,2.46487205]
[1751141655925,6.81834508,2434.5,2434.1,2.66974033]
[1751141656230,6.81834508,2434.5,2434.2,2.46484468]
[1751141656767,6.81834508,2434.5,2434.1,0.2048]
[1751141656768,0.7611,2434.2,2434.1,0.2048]
[1751141657066,12.46532738,2433.8,2433.3,2.46578608]
[1751141657208,9.84003579,2433.7,2433.2,0.001]
[1751141657409,9.84007237,2433.7,2433.2,2.46688285]
[1751141657644,12.46548323,2433.6,2433.2,0.001]
[1751141657852,13.28728323,2433.6,2433.2,0.001]
[1751141658614,22.74583712,2433.6,2433.2,0.001]
[1751141660040,22.74614109,2433.3,2433.2,0.001]
[1751141660245,31.01614109,2433.3,2433.2,0.001]
[1751141662333,28.55035389,2433.3,2433.2,0.001]
[1751141663062,28.55035389,2433.3,2433.2,2.46688854]
[1751141663063,10.0,2433.3,2433.2,2.46688854]
[1751141663293,10.0,2433.3,2433.2,0.001]
[1751141663440,10.0,2433.3,2433.2,2.46688854]
[1751141663765,10.0,2433.3,2433.2,0.001]
[1751141664125,19.45855389,2433.3,2433.2,0.001]
[1751141664537,22.74524109,2433.3,2433.2,0.001]
[1751141666964,20.27945389,2433.3,2433.2,0.001]
[1751141668444,22.74524109,2433.3,2433.2,0.001]
[1751141668961,20.27945389,2433.3,2433.2,0.001]
[1751141673942,19.45855389,2433.3,2433.2,0.001]
[1751141674144,27.73355389,2433.3,2433.2,0.001]
[1751141693081,10.0,2433.3,2433.2,0.001]
[1751141693258,18.273,2433.3,2433.2,2.46688854]
[1751141693588,27.73155389,2433.3,2433.2,2.46688854]
[1751141693907,27.73155389,2433.3,2433.2,0.001]
[1751141703093,28.52165389,2433.3,2433.2,0.001]
[1751141703705,27.73155389,2433.3,2433.2,0.001]
[1751141711109,27.72955389,2433.3,2433.2,0.001]
[1751141714591,30.19534109,2433.3,2433.2,0.001]
[1751141714799,27.72955389,2433.3,2433.2,0.001]
[1751141717204,27.72955389,2433.3,2432.7,0.001]
[1751141717205,2.46629398,2432.8,2432.7,0.001]
[1751141717409,11.56629398,2432.8,2432.7,0.001]
[1751141717611,31.02484787,2432.8,2432.7,0.001]
[1751141721091,0.7658,2432.4,2432.0,0.001]
[1751141721302,0.7658,2431.9,2431.1,2.96570931]
[1751141721504,10.0,2431.1,2430.6,0.2179318]
[1751141721718,9.45855389,2430.9,2430.6,2.68640217]
[1751141722010,6.648,2430.8,2430.6,0.2179318]
[1751141722217,9.45855389,2430.7,2430.6,0.2179318]
[1751141722414,21.92697862,2430.7,2430.6,0.2179318]
[1751141722614,2.46880691,2430.4,2429.6,3.2677149]
[1751141722813,10.0,2430.5,2429.3,0.7982]
[1751141722814,9.45855389,2429.7,2429.3,0.7982]
[1751141723216,9.45855389,2429.4,2428.1,0.2179318]
[1751141723417,0.7658,2429.6,2428.8,2.47035573]
[1751141723418,9.45855389,2428.9,2428.8,2.47035573]
[1751141723621,10.0,2428.8,2428.3,2.47079663]
[1751141723818,19.45855389,2428.6,2428.2,0.7982]
[1751141723987,6.758,2428.5,2428.2,0.7982]
[1751141724188,6.758,2428.5,2428.1,0.2179318]
[1751141724189,9.45855389,2428.3,2428.1,0.2179318]
[1751141724483,11.765,2428.4,2428.1,0.2179318]
[1751141724683,1.28746479,2428.3,2428.1,0.1679318]
[1751141724990,1.28746479,2428.3,2428.2,2.47096614]
[1751141725186,14.44554034,2428.7,2428.1,0.1679318]
[1751141725505,0.31352395,2429.7,2428.3,2.47080283]
[1751141725506,10.0,2428.5,2428.3,2.47080283]
[1751141725816,6.763,2428.5,2428.4,2.47076264]
[1751141726028,10.4374103,2428.8,2428.2,2.47096614]
[1751141726029,0.4374103,2428.8,2428.2,2.47096614]
[1751141726329,1.765,2428.7,2428.6,2.47055916]
[1751141726500,8.9674103,2428.8,2428.6,2.47055916]
[1751141727025,6.765,2428.7,2428.5,2.47063681]
[1751141727234,6.765,2428.7,2428.1,0.9661318]
[1751141727235,16.765,2428.7,2428.1,0.1679318]
[1751141727597,10.0,2428.6,2428.5,2.47059462]
[1751141728117,10.0,2428.6,2428.4,2.47072743]
[1751141728422,6.769,2428.5,2428.4,2.47076264]
[1751141728629,0.4374103,2428.8,2428.2,0.55]
[1751141728792,0.4374103,2428.8,2428.7,2.47045744]
[1751141732328,0.4374103,2428.8,2428.7,3.02045744]
[1751141732624,0.4374103,2428.8,2428.7,3.64661888]
[1751141733009,11.766,2429.5,2429.4,2.46974561]
[1751141733204,11.766,2429.5,2429.2,2.4698525]
[1751141733727,11.766,2429.5,2429.1,2.47000465]
[1751141734034,10.0,2429.4,2429.1,2.47000465]
[1751141734740,11.766,2429.5,2428.6,0.55]
[1751141734932,10.0,2429.2,2428.2,2.47088111]
[1751141735233,10.0,2429.2,2428.7,2.47044039]
[1751141735437,10.0,2429.2,2428.8,2.47034279]
[1751141736725,10.0,2429.2,2428.7,2.47041595]
[1751141737032,10.0,2429.2,2428.7,2.47037463]
[1751141737402,0.2056,2429.0,2428.8,2.47034795]
[1751141738126,0.2056,2429.0,2428.7,2.47040667]
[1751141740033,0.8072,2429.1,2428.7,2.47040667]
[1751141740199,0.2056,2429.0,2428.9,2.47020662]
[1751141741313,0.8072,2429.4,2429.0,2.4700933]
[1751141741510,0.2056,2429.1,2428.9,2.47020053]
[1751141742034,0.2056,2429.1,2429.0,2.47015232]
[1751141743340,1.767,2429.4,2429.2,2.46989622]
[1751141743542,0.2056,2429.3,2429.2,2.46989622]
[1751141744404,8.529,2429.5,2429.3,2.46983852]
[1751141744606,10.2056,2429.4,2429.3,2.46983852]
[1751141744821,0.2056,2429.4,2429.3,2.46983852]
[1751141745241,10.2056,2429.4,2429.3,2.46983852]
[1751141746008,10.2056,2429.4,2429.2,2.46989627]
[1751141747134,0.2056,2429.4,2429.2,2.46989627]
[1751141748039,0.2056,2429.4,2429.3,2.46984728]
[1751141749722,0.2056,2429.6,2429.5,2.46964395]
[1751141751711,2.4711393,2430.0,2429.4,2.46969912]
[1751141751910,0.2056,2429.7,2429.5,2.46963087]
[1751141752738,0.2056,2429.7,2429.3,2.46980307]
[1751141752952,0.2056,2429.7,2429.5,2.46957264]
[1751141753160,0.2056,2429.7,2429.6,2.46954231]
[1751141753847,0.2056,2429.7,2429.5,2.46961971]
[1751141755122,0.2056,2429.7,2429.6,2.46954231]
[1751141756336,0.002,2430.0,2429.4,2.46974017]
[1751141756526,0.2076,2430.0,2429.6,2.46954231]
[1751141756731,0.2076,2430.0,2429.8,2.46932648]
[1751141757751,0.2076,2430.0,2429.9,2.46923741]
[1751141759642,0.2076,2430.0,2429.8,2.46929454]
[1751141760266,0.2076,2430.0,2429.9,2.46923741]
[1751141760619,0.2076,2430.0,2429.8,2.46928714]
[1751141761555,0.2076,2430.0,2429.9,2.46923741]
[1751141762453,0.2076,2430.0,2429.7,2.46938346]
[1751141762635,9.69260474,2430.0,2429.7,2.46938346]
[1751141763357,9.48500474,2429.8,2429.4,2.46969959]
[1751141763561,9.48500474,2429.6,2429.5,2.46963099]
[1751141764140,9.69060474,2429.8,2429.5,2.46963099]
[1751141764339,10.65986521,2429.8,2429.5,2.46963099]
[1751141764756,1.17486047,2429.8,2429.4,0.2056]
[1751141764962,1.17486047,2429.8,2429.6,2.46944308]
[1751141765165,0.2056,2429.8,2429.7,2.46944067]